Cogmind - Beta 17.1 @@@ ROGUE MODE // 2026.09.12 @ 12:59:33 Player: cptwinky Result: Escaped! Performance ------------- Evolutions (9) 4500 Regions Visited (30) 6000 Robots Destroyed (402) 2010 Value Destroyed (16174) 16174 Prototype IDs (68) 1360 Alien Tech Used (0) 0 Bonus (11703) 11703 TOTAL SCORE: 41747 Bonus ------- High Alert Combat Kills 2422 Follower Combat Kills 2110 Entered DSFs 500 Network Hubs Disabled 200 Aligned with FarCom 300 Met Data Miner 300 Met Imprinter 300 MAIN.C Attacked Proxy Base 500 Built Enhanced Grunts 300 A7 Reached Mainframe 300 Met R17 at Cetus 500 Met R17 at Research 2000 Win 3000 Friendly Fire -1029 Cogmind --------- Core Integrity 1158/1600 Matter 241/300 Energy 328/350 System Corruption 17% Temperature Cool (8) Movement Treading (152) Location To Epsilon Eridani Parts ------- > --- POWER (1) -------- Quantum Reactor > --- PROPULSION (4) --- Advanced Heavy Treads (fused) Centrium Heavy Treads > --- UTILITY (4) ------ High-capacity Storage Unit Advanced Target Analyzer Core Analyzer Hacking Drone Bay (1/1) > --- WEAPON (16) ------ Phase Gun Quantum Rifle Enhanced Nova Cannon Light Assault Rifle Light Assault Rifle Heavy Machine Gun Railgun Advanced KE Penetrator Heavy Linear Accelerator Improved Plasma Cutter Great Maul Phasing Sabre > --- INVENTORY (20) --- Quantum Reactor Quantum Reactor Centrium Heavy Treads Advanced Coolant Injector Advanced Coolant Injector Superbattery (1500) Experimental Matter Compressor (500) Centrium Medium Armor Plating Advanced Force Field High-powered Tractor Beam Peak State ------------ > --- POWER ------------ Quantum Reactor > --- PROPULSION ------- Armored Heavy Treads Centrium Heavy Treads > --- UTILITY ---------- High-capacity Storage Unit Advanced Target Analyzer Core Analyzer Centrium Medium Armor Plating > --- WEAPON ----------- Cooled Pulse Rifle Light Assault Rifle Light Assault Rifle Coil Gun Heavy Machine Gun Heavy Machine Gun KE Penetrator KE Penetrator Railgun Advanced KE Penetrator Advanced KE Penetrator Helical Railgun Hardcell Cannon Advanced Micro-nuke Launcher Great Maul > --- INVENTORY -------- Quantum Reactor Advanced Heavy Treads Centrium Heavy Treads Advanced Coolant Injector Advanced Coolant Injector Superbattery Experimental Matter Compressor Advanced Target Analyzer Advanced Force Field Authchip [Weapon] Authchip [Weapon] Authchip [Weapon] High-powered Tractor Beam Hacking Drone Bay Enhanced Nova Cannon Improved Plasma Cutter Phasing Sabre [Rating: 162] Favorites ----------- Power Heavy Ion Engine Engine Heavy Ion Engine Power Core Micro Nuclear Core Reactor Quantum Reactor Propulsion Armored Treads Treads Armored Treads Leg Aluminum Leg Hover Unit Aerolev Unit Flight Unit Improved VTOL Module Utility High-capacity Storage Unit Device Tactical Coordination Suite Storage High-capacity Storage Unit Processor Core Analyzer Hackware Hacking Suite Protection Reactive Plating Weapon Improved Assault Rifle Energy Gun Cooled Pulse Rifle Energy Cannon Beam Cannon Ballistic Gun Improved Assault Rifle Ballistic Cannon Hardcell Cannon Launcher Advanced Micro-nuke Launcher Special Weapon Plasma Cutter Impact Weapon Great Maul Slashing Weapon Phasing Sabre Special Melee Weapon Advanced Datajack Build | -11 -10 -10 -9 -9 -9 -8 -8 -8 -7 -7 -7 -7 -6 -6 -6 -6 -6 -5 -5 -5 -5 -5 -5 -4 -4 -4 -3 -2 -2 -1 ------- Run | Yrd Mat Min Mat Min Exi Min Mat Sto Fac Low Low Dat Pro Fac Low Low Zio Pro Fac Ext Cet Arc Hub Fac Upp Upp Res Res DSF Acc Slots Evolved 18 | . . . 2 . . . 2 . 2 . . . . 2 . . . . 2 . . . . 2 . . 2 2 . 2 Power . | . . . . . . . . . . . . . . . . . . . . . . . . . . . . . . . Propulsion 2 | . . . . . . . 1 . 1 . . . . . . . . . . . . . . . . . . . . . Utility 2 | . . . . . . . 1 . 1 . . . . . . . . . . . . . . . . . . . . . Weapon 14 | . . . 2 . . . . . . . . . . 2 . . . . 2 . . . . 2 . . 2 2 . 2 Parts Attached 213 | 6 12 10 19 2 1 2 12 21 5 5 4 . 4 9 4 10 5 7 5 12 10 2 . 3 . 2 10 . 6 25 Power 17 | 1 1 2 3 . 1 . . 2 . . . . . 1 . 1 . . . 1 2 . . . . . 1 . . 1 Engine 11 | 1 1 2 3 . 1 . . 2 . . . . . . . 1 . . . . . . . . . . . . . . Core 3 | . . . . . . . . . . . . . . 1 . . . . . 1 1 . . . . . . . . . Reactor 3 | . . . . . . . . . . . . . . . . . . . . . 1 . . . . . 1 . . 1 Propulsion 54 | 2 3 3 2 1 . 1 7 10 2 1 1 . 3 4 . 3 1 1 . 3 2 . . . . . 1 . 1 2 Treads 46 | 2 . . 2 1 . 1 5 10 2 1 1 . 3 4 . 3 1 1 . 3 2 . . . . . 1 . 1 2 Leg 6 | . 3 3 . . . . . . . . . . . . . . . . . . . . . . . . . . . . Wheel . | . . . . . . . . . . . . . . . . . . . . . . . . . . . . . . . Hover 1 | . . . . . . . 1 . . . . . . . . . . . . . . . . . . . . . . . Flight 1 | . . . . . . . 1 . . . . . . . . . . . . . . . . . . . . . . . Utility 50 | 1 4 2 4 . . 1 3 3 3 2 1 . . . 2 2 3 2 1 1 1 1 . 2 . . 3 . 2 6 Device 16 | . 1 . . . . . . . . 1 1 . . . 2 1 3 1 1 1 . 1 . 1 . . . . 1 1 Storage 6 | 1 2 . 1 . . . . 1 . . . . . . . . . . . . . . . . . . 1 . . . Processor 7 | . . . . . . . . . 1 1 . . . . . . . 1 . . . . . 1 . . 1 . 1 1 Hackware 4 | . . . . . . . . . 1 . . . . . . . . . . . . . . . . . . . . 3 Protection 17 | . 1 2 3 . . 1 3 2 1 . . . . . . 1 . . . . 1 . . . . . 1 . . 1 Artifact . | . . . . . . . . . . . . . . . . . . . . . . . . . . . . . . . Weapon 92 | 2 4 3 10 1 . . 2 6 . 2 2 . 1 4 2 4 1 4 4 7 5 1 . 1 . 2 5 . 3 16 Energy Gun 13 | 1 2 2 . . . . . 1 . . . . . 1 . . . . 3 1 . . . . . . . . . 2 Energy Cannon 3 | . . . 2 . . . . . . . . . . . . . . . . . . . . . . . . . . 1 Ballistic Gun 57 | 1 1 1 7 . . . 2 2 . 1 1 . 1 2 2 4 . 3 . 5 4 . . 1 . 2 3 . 2 12 Ballistic Cannon 3 | . 1 . . . . . . . . . . . . . . . . . . . . . . . . . 1 . . 1 Launcher 7 | . . . . 1 . . . . . 1 1 . . 1 . . . 1 . . . . . . . . 1 . 1 . Special Weapon 3 | . . . . . . . . 1 . . . . . . . . 1 . . . 1 . . . . . . . . . Impact Weapon 3 | . . . 1 . . . . 1 . . . . . . . . . . . 1 . . . . . . . . . . Slashing Weapon 1 | . . . . . . . . . . . . . . . . . . . 1 . . . . . . . . . . . Piercing Weapon . | . . . . . . . . . . . . . . . . . . . . . . . . . . . . . . . Special Melee Weapon 2 | . . . . . . . . 1 . . . . . . . . . . . . . 1 . . . . . . . . Unidentified Prototypes 15 | . . . . . . . 2 2 . . . . . . . . 2 . 1 . 3 . . . . . 5 . . . Corrupted Parts 1 | . . . . . . . . . . . . . . . . . . . . . 1 . . . . . . . . . System Corruption 3 | . . . . . . . . . . . . . . . . . . . . . 3 . . . . . . . . . Parts Lost 34 | . 1 2 1 . . . . 1 . . . . 2 . 4 . . . . . . . . . . . . . 4 19 Power 2 | . . 1 . . . . . . . . . . . . . . . . . . . . . . . . . . . 1 Propulsion 3 | . 1 . . . . . . . . . . . . . 1 . . . . . . . . . . . . . . 1 Utility 6 | . . 1 . . . . . 1 . . . . 1 . . . . . . . . . . . . . . . 2 1 Weapon 23 | . . . 1 . . . . . . . . . 1 . 3 . . . . . . . . . . . . . 2 16 Highest Loss Streak 5 | . 1 2 1 . . . . 1 . . . . 2 . 4 . . . . . . . . . . . . . 4 5 To Critical Strikes . | . . . . . . . . . . . . . . . . . . . . . . . . . . . . . . . Average Backups 18 | 4 13 14 18 19 19 18 18 19 19 20 19 20 19 19 19 19 18 18 19 19 19 19 19 18 19 19 18 19 17 16 Power 1 | . 1 . . 1 1 1 1 . . 1 1 1 1 . 1 1 . 1 1 1 . 1 1 1 1 1 1 1 1 1 Propulsion 1 | 2 2 3 4 4 4 3 1 2 2 2 1 1 1 1 . . . . . . 1 1 1 1 1 1 1 2 2 1 Utility 7 | . 1 4 5 5 5 6 6 4 4 5 6 7 6 7 9 9 8 10 10 9 8 9 9 10 10 9 9 9 9 9 Weapon 7 | 1 7 6 7 8 8 8 9 10 10 10 9 9 8 8 7 7 7 6 5 6 6 6 6 4 5 5 5 5 3 3 Tool/Special . | . . . . . . . . . . . . . . . . . . . . . . . . . . . . . . . Unused Backups 50 | . . 1 10 5 1 1 2 2 3 . . . . 1 . 1 9 1 . 2 1 . 1 . 1 . 1 . 1 6 Power 7 | . . . 1 . 1 . 1 . . . . . . . . . . . . 1 . . . . . . . . . 3 Propulsion 7 | . . . 3 1 . 1 . . . . . . . . . . . . . 1 . . . . . . . . 1 . Utility 23 | . . . 4 3 . . . . 1 . . . . . . 1 6 1 . . 1 . 1 . 1 . 1 . . 3 Weapon 12 | . . 1 2 1 . . 1 2 2 . . . . . . . 3 . . . . . . . . . . . . . Tool/Special 1 | . . . . . . . . . . . . . . 1 . . . . . . . . . . . . . . . . Average Slot Usage (%) 96 | . 98 99 99 100 100 100 93 99 99 100 99 100 100 97 90 100 99 100 92 99 94 94 94 93 94 94 92 86 82 84 Engine 5 | . 14 13 11 11 11 11 9 9 7 7 7 7 7 1 . 2 6 6 5 1 . . . . . . . . . . Treads 21 | . 17 . 21 22 22 22 26 27 30 30 30 30 30 26 25 26 26 26 23 23 18 17 17 15 15 15 14 13 9 8 Leg 1 | . 10 28 . . . . . . . . . . . . . . . . . . . . . . . . . . . . Device 2 | . 5 . . . . . . . . . 5 7 7 6 5 6 5 3 . . . . . 1 4 4 . . 3 . Storage 7 | . 14 14 11 11 11 11 9 9 7 7 7 7 7 6 6 6 6 6 5 5 5 5 5 5 5 5 4 4 4 4 Processor 6 | . . . . . . . . . 1 15 8 7 7 6 6 6 6 12 11 11 11 11 11 10 10 10 9 8 4 8 Protection 7 | . 5 14 11 11 11 11 11 18 15 6 6 7 7 6 6 6 6 3 5 4 4 4 4 3 . . 3 4 3 3 Energy Gun 4 | . 14 16 1 . . . . . . . . . . 5 6 5 2 . 2 17 14 6 11 10 10 10 7 4 4 1 Ballistic Gun 33 | . 9 3 33 43 44 44 35 34 29 29 29 30 30 30 23 32 36 39 36 28 30 35 35 39 41 41 42 43 41 46 Peak Build Rating 162 | 6 8 8 23 23 23 23 31 33 41 44 48 46 48 55 55 66 69 65 71 88 120 123 121 124 124 121 138 138 154 162 Average Rating 59 | 5 7 7 16 22 22 23 28 28 38 42 45 45 44 51 48 63 62 62 62 76 109 122 120 122 119 120 130 138 144 138 On Entrance 64 | . 6 8 8 23 22 23 23 27 32 41 42 46 46 43 55 54 65 61 61 71 86 120 121 121 122 124 120 138 138 154 Avg Prop Armor Cover (%) 5 | . . . . . . . . . . . . . . . . . . 5 . . . . . . . . . . . . Naked Turns . | . . . . . . . . . . . . . . . . . . . . . . . . . . . . . . . Heaviest Build 144 | 12 32 32 67 67 67 67 75 77 76 73 75 75 75 80 80 88 92 88 86 95 108 108 108 112 110 108 126 126 137 144 Greatest Support 150 | 40 40 20 40 40 40 40 60 63 83 83 83 80 90 88 98 98 90 88 88 111 138 138 138 138 138 138 138 138 140 150 Greatest Overweight (x) 1 | . 1 1 1 1 1 1 1 1 . . . . . . . . 1 1 . 1 . . . . . . . . . 1 Average Overweight (x) . | . . 1 . 1 1 1 1 1 . . . . . . . . . . . . . . . . . . . . . . Largest Inventory Capacity 20 | 8 15 15 20 20 20 20 20 20 20 20 20 20 20 20 20 20 20 20 20 20 20 20 20 20 20 20 20 20 20 20 Average Capacity 19 | 7 14 15 18 20 20 20 20 20 20 20 20 20 20 20 20 20 20 20 20 20 20 20 20 20 20 20 20 20 20 20 Most Carried 20 | 7 15 15 20 20 20 20 20 20 20 20 20 20 20 20 20 20 20 20 20 20 20 20 20 20 20 20 20 20 20 20 Average Carried 19 | 4 13 14 18 19 19 19 19 19 19 19 19 20 19 19 19 19 19 19 19 19 19 20 19 19 20 20 19 20 19 18 Final Capacity 20 | 8 15 15 20 20 20 20 20 20 20 20 20 20 20 20 20 20 20 20 20 20 20 20 20 20 20 20 20 20 20 20 Final Carried 20 | 7 15 15 20 20 20 20 20 20 20 20 20 20 20 20 18 20 20 20 20 20 20 20 20 20 20 20 20 20 20 11 Class Distribution -------------------- 36% | Scavenger-Executioner 16% | Tank 15% | Gunner 7% | Mutant 6% | Skirmisher 4% | Commander-Executioner 3% | Scientist-Executioner 3% | Derelict-Executioner Dominant Class ---------------- Mutant | -10/Materials Mutant | -10/Mines Scientist-Tank | -9/Materials Tank | -9/Mines Tank | -9/Exiles Skirmisher | -8/Mines Skirmisher | -8/Materials Tank | -8/Storage Commander-Tank | -7/Factory Gunner | -7/Lower Caves Gunner | -7/Lower Caves Gunner | -7/Data Miner Gunner | -6/Proximity Caves Scientist-Executioner | -6/Factory Scientist-Gunner | -6/Lower Caves Derelict-Executioner | -6/Lower Caves Scavenger-Executioner | -6/Zion Scavenger-Executioner | -5/Proximity Caves Scavenger-Executioner | -5/Factory Commander-Executioner | -5/Extension Commander-Executioner | -5/Cetus Scavenger-Executioner | -5/Archives Scavenger-Executioner | -5/Hub_04(d) Scavenger-Executioner | -4/Factory Scavenger-Executioner | -4/Upper Caves Scavenger-Executioner | -4/Upper Caves Scavenger-Executioner | -3/Research Scavenger-Executioner | -2/Research Scavenger-Executioner | -2/DSF Scavenger-Executioner | -1/Access Resources | -11 -10 -10 -9 -9 -9 -8 -8 -8 -7 -7 -7 -7 -6 -6 -6 -6 -6 -5 -5 -5 -5 -5 -5 -4 -4 -4 -3 -2 -2 -1 ----------- Run | Yrd Mat Min Mat Min Exi Min Mat Sto Fac Low Low Dat Pro Fac Low Low Zio Pro Fac Ext Cet Arc Hub Fac Upp Upp Res Res DSF Acc Matter Collected 13399 | 274 203 205 663 384 . 186 715 1386 304 125 696 . 492 285 364 194 120 545 172 1160 330 88 44 400 33 102 751 . 530 2648 Remotely 715 | . . . . . . . . . . . . . . . . . . . . . . . . 214 . . . . . 501 Salvage Created 17953 | 199 457 324 1320 314 . 300 1056 2091 412 96 700 . 693 388 499 235 . 844 238 2264 314 195 . 633 . 100 151 . 633 3497 Parts 947 | 17 31 23 83 23 . 14 65 128 25 7 30 . 34 19 17 16 . 44 8 89 15 8 . 32 . 3 9 . 37 170 Haulers Intercepted 22 | . 2 . 6 . . . 5 6 1 . . . . . . . . . . 1 . . . 1 . . . . . . Recyclers Shooed 12 | . . . 1 1 . . . 3 1 . . . . 1 . . . . . 1 . . . 3 . . . . . 1 Parts Field Recycled . | . . . . . . . . . . . . . . . . . . . . . . . . . . . . . . . Retrieved Matter . | . . . . . . . . . . . . . . . . . . . . . . . . . . . . . . . Parts Self-Destructed 138 | . . . . . . . . . . 7 39 . 37 . 13 1 1 40 . . . . . . . . . . . . Prevented 64 | . . . . . . . . . . . 1 . . . . . . 63 . . . . . . . . . . . . Parts Restored . | . . . . . . . . . . . . . . . . . . . . . . . . . . . . . . . Kills | -11 -10 -10 -9 -9 -9 -8 -8 -8 -7 -7 -7 -7 -6 -6 -6 -6 -6 -5 -5 -5 -5 -5 -5 -4 -4 -4 -3 -2 -2 -1 ------- Run | Yrd Mat Min Mat Min Exi Min Mat Sto Fac Low Low Dat Pro Fac Low Low Zio Pro Fac Ext Cet Arc Hub Fac Upp Upp Res Res DSF Acc Combat Hostiles Destroyed 319 | . 13 14 21 10 . 5 21 36 6 2 25 . 14 6 11 1 . 14 4 30 3 . . 10 . 1 4 . 10 58 Guns 254 | . 11 9 16 8 . 5 21 36 6 2 13 . 12 6 5 1 . 9 4 30 3 . . 5 . 1 1 . 7 43 Cannons 14 | . 2 5 5 . . . . . . . . . . . . . . . . . . . . . . . . . . 2 AOE 51 | . . . . 2 . . . . . . 12 . 2 . 6 . . 5 . . . . . 5 . . 3 . 3 13 Classes Destroyed 20 | 3 5 . 4 1 . 1 . . 1 . . . 1 . . 1 . 1 . 1 . . . . . . . . 1 . Worker 10 | 1 . . 2 . . . 2 2 2 . . . . . . . . . . . . . . . . . . . . 1 Builder 10 | . . . 1 . . . . . 1 . . . . . . . . . . 2 . . . 4 . . . . . 2 Tunneler 4 | 4 . . . . . . . . . . . . . . . . . . . . . . . . . . . . . . Hauler 22 | . 2 . 6 . . . 5 6 1 . . . . . . . . . . 1 . . . 1 . . . . . . Recycler 12 | 1 . . 1 1 . 1 1 2 1 . . . . . . . . . . 2 . . . 1 . . . . . 1 Mechanic 3 | . . . 1 . . . . . . . . . . 1 . . . 1 . . . . . . . . . . . . Operator 9 | . 1 . 2 . . . 1 1 . . . . . . . . . . . . . 4 . . . . . . . . Watcher 9 | . 1 . . . . . 1 1 . . . . . . . . . . . 1 2 . . . . . . . . 3 Swarmer 97 | . 6 8 3 5 . 1 11 8 1 . 7 . 5 . 4 . . 3 . 6 . . . 3 . . 3 . 3 20 Grunt 113 | . 7 6 13 3 . 2 2 15 3 1 11 . 6 1 6 . . 7 2 7 . . . 5 . . . . 4 12 Brawler 7 | . . . 1 1 . 1 . . . . 2 . . . . . . 1 . . . . . . . . . . . 1 Duelist 7 | . . . . 1 . . . 1 . . 3 . 1 . 1 . . . . . . . . . . . . . . . Protector 1 | . . . . . . . . . . . . . . . . . . . . 1 . . . . . . . . . . Sentry 43 | . . . 4 . . . 6 10 1 . 2 . 1 3 . 1 . . 1 12 . . . . . . 1 . . 1 Specialist 4 | . . . . . . . . . . . . . . . . . . 1 . 1 . . . . . . . . . 2 Hunter 15 | . . . . . . 1 2 2 . 1 . . . . . . . 2 . . . . . . . . . . . 7 Programmer 22 | . . . . . . . . . 1 . . . . 2 . . . . 1 . . . . 2 . . . . 2 14 Heavy 2 | . . . . . . . . . . . . . . . . . . . . . . . . . . . . . 1 1 Behemoth 2 | . . . . . . . . . . . . . 1 . . . . . . 1 . . . . . . . . . . Cetus Guard 3 | . . . . . . . . . . . . . . . . . . . . . 3 . . . . . . . . . Thug 1 | . . . . . . . . . . . . . . . . . . . . 1 . . . . . . . . . . Savage 1 | . . . . . . . . . . . . . . . . . . . . 1 . . . . . . . . . . Butcher 1 | . . . . . . . . . . . . . . . . . . . . . . 1 . . . . . . . . Guerrilla 1 | . . . . . . . . . . . . . . . . . . . . . 1 . . . . . . . . . Mutant 3 | . . . . . . . . . . . . . . . . 2 . . . . . . . . . 1 . . . . Best Kill Streak 14 | 3 4 3 6 5 . 2 6 6 5 1 11 . 3 3 7 1 . 7 2 4 3 3 . 14 . 1 3 . 4 10 Combat Bots Only 11 | . 4 3 3 4 . 1 5 4 3 1 11 . 3 3 7 1 . 7 2 4 2 . . 9 . 1 3 . 4 9 Max Kills in Single Turn 4 | 2 1 1 2 2 . 1 3 2 2 1 3 . 2 1 3 1 . 2 1 4 2 1 . 4 . 1 3 . 2 4 Gunslinging 3 | . . . 1 1 . . 2 1 . . . . 1 . . . . . . 3 . . . 1 . . . . 1 3 Exploded 3 | . . . . 2 . . . . . . 3 . 2 . 3 . . 2 . . . . . 3 . . 3 . 2 3 Melee . | . . . . . . . . . . . . . . . . . . . . . . . . . . . . . . . Uniques/NPCs Destroyed . | . . . . . . . . . . . . . . . . . . . . . . . . . . . . . . . Combat | -11 -10 -10 -9 -9 -9 -8 -8 -8 -7 -7 -7 -7 -6 -6 -6 -6 -6 -5 -5 -5 -5 -5 -5 -4 -4 -4 -3 -2 -2 -1 -------- Run | Yrd Mat Min Mat Min Exi Min Mat Sto Fac Low Low Dat Pro Fac Low Low Zio Pro Fac Ext Cet Arc Hub Fac Upp Upp Res Res DSF Acc Hostile Shots Fired 1174 | . 79 62 52 13 . 13 60 79 45 3 62 . 81 108 21 18 . 17 31 74 15 4 . 19 2 . 7 . 30 279 Missed 332 | . 22 10 12 6 . 2 11 14 21 . 23 . 22 45 3 5 . 9 10 22 5 . . 7 1 . 2 . 7 73 Hits 842 | . 57 52 40 7 . 11 49 65 24 3 39 . 59 63 18 13 . 8 21 52 10 4 . 12 1 . 5 . 23 206 Melee 8 | . . . . . . . . . . . . . 3 . . . . . . 5 . . . . . . . . . . Projectile 834 | . 57 52 40 7 . 11 49 65 24 3 39 . 56 63 18 13 . 8 21 47 10 4 . 12 1 . 5 . 23 206 Critical Strikes 33 | . . . 1 . . 1 3 1 . . 1 . 2 1 2 . . . 1 3 4 . . 1 1 . . . 3 8 Part Disruptions 1 | . . . . . . . . . . . . . . . . . . . . . . . . . . . . . . 1 Damage Taken 14735 | . 600 557 483 60 . 153 580 865 265 44 647 . 947 604 397 96 . 161 317 853 320 112 96 238 21 . 162 . 900 5257 Core 1427 | . 139 69 80 9 . 17 20 91 . . 93 . 94 24 23 . . . . 138 27 26 . . . . . . 135 442 Absorbed by Shields 358 | . . . . . . . . 67 . . . . . . . . . . . 291 . . . . . . . . . . Reduced by Siege Mode 282 | . . . . . . . . . . . . . . . . . . . . . . . . 18 . . . . 19 245 Ignored by Resistances 351 | . . . . . . . . 12 16 8 26 . 85 . . . . . 47 100 57 . . . . . . . . . Regen/Repaired (Parts) 1052 | . 120 . . . . . . 151 53 . . . . . . . . . 150 198 . . . . . . 297 . . 83 Core Remaining (%) 79 | 100 . 16 . . . 73 . 79 . . . . 73 . . . . 94 . . . . 80 . . 100 100 . 90 72 Volleys Fired 729 | 14 73 41 52 13 . 13 46 74 16 4 39 . 28 18 22 22 . 26 7 62 9 32 . 11 3 3 3 . 15 83 Largest 14 | 2 2 2 4 4 . 4 4 4 4 4 4 . 4 6 4 6 . 6 7 8 8 6 . 10 1 6 11 . 11 14 Hottest 399 | 60 80 80 163 92 . 92 92 96 96 96 96 . 94 202 143 245 . 185 192 212 224 204 . 284 35 202 309 . 362 399 Shots Fired 2979 | 28 142 82 196 49 . 52 184 288 63 16 126 . 109 81 45 32 . 117 49 386 48 71 . 60 3 8 21 . 99 624 Gun 2816 | 28 130 63 155 48 . 52 184 288 63 16 116 . 108 81 39 32 . 112 49 381 48 71 . 56 3 8 19 . 90 576 Cannon 115 | . 12 19 41 . . . . . . . . . . . . . . . . . . . . . . . 1 . 6 36 Launcher 48 | . . . . 1 . . . . . . 10 . 1 . 6 . . 5 . 5 . . . 4 . . 1 . 3 12 Special . | . . . . . . . . . . . . . . . . . . . . . . . . . . . . . . . Kinetic 2464 | 14 71 36 146 48 . 52 184 288 63 16 116 . 108 72 23 10 . 112 49 245 45 12 . 44 3 8 18 . 91 590 Thermal 467 | 14 71 46 50 . . . . . . . . . . 9 16 22 . . . 136 3 59 . 12 . . 2 . 5 22 Explosive 48 | . . . . 1 . . . . . . 10 . 1 . 6 . . 5 . 5 . . . 4 . . 1 . 3 12 Electromagnetic . | . . . . . . . . . . . . . . . . . . . . . . . . . . . . . . . Robot Hit Streak 43 | 8 20 15 22 7 . 13 21 33 7 4 13 . 20 17 13 13 . 21 8 17 9 12 . 15 . . 13 . 15 43 Robot Miss Streak 5 | 3 3 2 4 3 . 2 4 4 2 1 5 . 2 3 2 2 . 4 2 4 4 4 . 2 . . 1 . 2 3 Penetration Max 2 | . . . . . . . . . . . . . . . . . . 1 1 1 1 . . 1 . . . . 2 1 Secondary Targets 54 | . . . 2 1 . . 7 7 1 . 3 . 5 . 1 . . 2 . 8 1 . . 1 . . . . 3 12 Max Gunslinging Chain 4 | . . . 2 1 . . 2 2 1 . 1 . 1 . 1 . . 1 . 4 1 . . 1 . . . . 2 3 Shots Hit Robots 1885 | 17 96 57 123 21 . 27 116 195 33 9 74 1 87 53 33 25 1 70 29 251 30 49 . 35 . 7 8 . 60 378 Core Hits 961 | 9 29 22 55 14 . 12 47 84 18 6 59 . 40 20 24 9 . 54 13 126 24 20 . 36 . 2 9 . 26 203 Critical Kills 28 | . . . 1 . . . 1 . . . . . 1 . 1 . . 3 . 5 1 . . . . 1 . . 1 13 Critical Parts Destroyed 46 | . . . 1 . . . 1 2 . . . . . . 2 1 . 4 1 7 2 1 . 3 . . 1 . 1 19 Critical Strikes 103 | . . 1 2 . . . 2 2 . . . . 1 . 3 1 . 8 1 25 6 8 . 4 . 1 1 . 2 35 Burn 20 | . . . . . . . . . . . . . . . . . . . . 10 1 7 . 1 . . . . . 1 Destroy 79 | . . . 2 . . . 2 2 . . . . 1 . 3 1 . 8 1 15 5 1 . 3 . 1 1 . 2 31 Blast 2 | . . 1 . . . . . . . . . . . . . . . . . . . . . . . . . . . 1 Smash 2 | . . . . . . . . . . . . . . . . . . . . . . . . . . . . . . 2 Melee Attacks 137 | . . . 1 . . . . 11 5 . 15 1 . 5 . 21 1 7 2 9 1 2 . 9 4 7 5 . . 31 Impact 114 | . . . 1 . . . . 11 5 . 15 . . 5 . 21 . . . 8 . . . 8 4 . 5 . . 31 Slashing 2 | . . . . . . . . . . . . . . . . . . . 2 . . . . . . . . . . . Piercing . | . . . . . . . . . . . . . . . . . . . . . . . . . . . . . . . Sneak Attacks 25 | . . . . . . . . . . . . 1 . 1 . . 1 7 . 1 1 2 . 1 . 7 . . . 3 Combat Hostiles . | . . . . . . . . . . . . . . . . . . . . . . . . . . . . . . . Follow-up Attacks . | . . . . . . . . . . . . . . . . . . . . . . . . . . . . . . . Damage Inflicted 41316 | 177 1158 687 1707 572 . 413 1892 3236 635 144 2841 . 1542 996 1301 574 . 2091 543 5227 1003 966 35 1770 . 81 523 . 2050 9152 Guns 30156 | 177 890 478 1186 383 . 397 1841 3203 604 129 1092 . 1401 927 453 574 . 1198 543 4773 1003 966 . 708 . 81 290 . 1397 5462 Cannons 1299 | . 103 195 480 . . . . . . . . . . . . . . . . . . . . . . . 45 . 61 415 Explosions 8909 | . 151 . . 158 . . . . . . 1749 . 141 . 848 . . 893 . 213 . . . 1062 . . 188 . 592 2914 Melee 539 | . . . . . . . . . . . . . . 58 . . . . . 134 . . . . . . . . . 347 Ramming 413 | . 14 14 41 31 . 16 51 33 31 15 . . . 11 . . . . . 107 . . 35 . . . . . . 14 Kinetic 25526 | 85 424 302 1120 383 . 397 1841 3203 604 129 1092 . 1401 756 139 92 . 1198 543 2779 947 168 . 482 . 81 335 . 1354 5671 Thermal 6046 | 92 569 371 546 117 . . . . . . . . . 171 314 482 . . . 1994 56 798 . 226 . . . . 104 206 Explosive 8792 | . 151 . . 41 . . . . . . 1749 . 141 . 848 . . 893 . 213 . . . 1062 . . 188 . 592 2914 Electromagnetic . | . . . . . . . . . . . . . . . . . . . . . . . . . . . . . . . Impact 539 | . . . . . . . . . . . . . . 58 . . . . . 134 . . . . . . . . . 347 Slashing . | . . . . . . . . . . . . . . . . . . . . . . . . . . . . . . . Piercing . | . . . . . . . . . . . . . . . . . . . . . . . . . . . . . . . Highest Corruption 17 | . . . . . . . . 1 1 1 . . . 1 1 . . . . . 3 3 5 . . . 1 . . 17 Average Corruption 3 | . . . . . . . . 1 1 1 . . . 1 1 . . . . . 3 2 5 . . . 1 . . 8 Corruption Purged 5 | . . . . . . . . . . 1 . . . . 1 . . . . . . 3 . . . . . . . . Corruption Blocked . | . . . . . . . . . . . . . . . . . . . . . . . . . . . . . . . Effects 93 | . . . . . . . . . 1 2 . . . 3 6 . . . . . 1 5 4 . . . 11 . . 60 Message Errors 14 | . . . . . . . . . . 1 . . . 1 1 . . . . . 1 1 . . . . 4 . . 5 Matter Fused 21 | . . . . . . . . . . . . . . . 2 . . . . . . . 3 . . . 1 . . 15 Heat Flow Errors 11 | . . . . . . . . . . . . . . . 1 . . . . . . 1 1 . . . 2 . . 6 Energy Discharges 12 | . . . . . . . . . . . . . . . . . . . . . . . . . . . 1 . . 11 Parts Fused 2 | . . . . . . . . . . . . . . . . . . . . . . . . . . . . . . 2 Data Loss (minor) 15 | . . . . . . . . . . 1 . . . 1 1 . . . . . . 2 . . . . 2 . . 8 Data Loss (major) 5 | . . . . . . . . . . . . . . . . . . . . . . . . . . . 1 . . 4 Misfires 3 | . . . . . . . . . . . . . . 1 1 . . . . . . . . . . . . . . 1 Alerts 1 | . . . . . . . . . . . . . . . . . . . . . . . . . . . . . . 1 Weapon Failures 9 | . . . . . . . . . 1 . . . . . . . . . . . . 1 . . . . . . . 7 Overload Shots . | . . . . . . . . . . . . . . . . . . . . . . . . . . . . . . . Overflow Damage 683 | . . . . . . . . . . . 75 . 21 33 89 . . . . 17 . . 5 64 . . . . 63 316 Projectiles . | . . . . . . . . . . . . . . . . . . . . . . . . . . . . . . . Explosions 393 | . . . . . . . . . . . 75 . 21 . 89 . . . . 12 . . . 64 . . . . 63 69 Melee 290 | . . . . . . . . . . . . . . 33 . . . . . 5 . . 5 . . . . . . 247 Knockbacks 10 | . 1 4 . 1 . . . . 1 . . . . . . . . . . 1 . . . . . . . . . 2 Impact 4 | . . . . 1 . . . . 1 . . . . . . . . . . 1 . . . . . . . . . 1 Kinetic 5 | . 1 3 . . . . . . . . . . . . . . . . . . . . . . . . . . . 1 Secondary 1 | . . 1 . . . . . . . . . . . . . . . . . . . . . . . . . . . . Self-Inflicted Damage 421 | . . . . . . . . . . . 107 . . . 64 . . . . 101 . . . . . . 33 . 37 79 Shots 10 | . . . . . . . . . . . 3 . . . 2 . . . . 2 . . . . . . 1 . 1 1 Rammed 44 | . 2 . 6 7 . 1 6 5 2 2 . . . 2 . . . . 1 8 . . 1 . . . . . . 1 Targets Rammed 60 | . 6 7 8 7 . 1 7 5 3 2 . . . 2 . . . . 1 8 . . 1 . . . . . . 2 Kicked 11 | . 4 7 . . . . . . . . . . . . . . . . . . . . . . . . . . . . Crushed 5 | . . . 2 . . . 1 . 1 . . . . . . . . . . . . . . . . . . . . 1 Highest Temperature 468 | 40 169 231 299 141 . 130 186 270 244 86 264 . 278 303 352 272 . 342 267 330 291 371 194 316 . 68 412 . 315 468 Average Temperature 94 | 20 55 74 90 53 . 53 51 78 108 41 96 . 97 147 110 94 . 94 112 112 115 154 101 130 . 35 138 . 128 142 Received Heat Transfer 2964 | . 216 216 249 6 . 63 180 312 93 9 276 . 243 168 165 24 . 36 63 146 . . . 94 . . 18 . 36 351 Effects 8 | . . 1 4 . . . . . . . . . . . 1 . . . 1 . . . . . . . . . 1 . Energy Bleed 3 | . . . 1 . . . . . . . . . . . 1 . . . 1 . . . . . . . . . . . Interference 5 | . . 1 3 . . . . . . . . . . . . . . . . . . . . . . . . . 1 . Siege Activations 12 | . . . . . . . . . . . . . . . . . . . . . . . . 1 . . . . 1 10 Total Turns 236 | . . . . . . . . . . . . . . . . . . . . . . . . 20 . . . . 13 203 Longest Duration 37 | . . . . . . . . . . . . . . . . . . . . . . . . 20 . . . . 13 37 Martial Activations . | . . . . . . . . . . . . . . . . . . . . . . . . . . . . . . . Shielding Activations . | . . . . . . . . . . . . . . . . . . . . . . . . . . . . . . . Robots Disrupted . | . . . . . . . . . . . . . . . . . . . . . . . . . . . . . . . Combat Hostiles . | . . . . . . . . . . . . . . . . . . . . . . . . . . . . . . . Robots Corrupted 3 | . . . . . . . . . . . . . . . . . . . . 1 . . . . . . . . . 2 Combat Hostiles . | . . . . . . . . . . . . . . . . . . . . . . . . . . . . . . . Parts Fried 2 | . . . . . . . . . . . . . . . . . . . . . . . . . . . . . . 2 Impact Corruptions 10 | . . . . . . . . . . . . . . 1 . . . . . 1 . . 1 . . . . . . 7 Robots Melted . | . . . . . . . . . . . . . . . . . . . . . . . . . . . . . . . Combat Hostiles . | . . . . . . . . . . . . . . . . . . . . . . . . . . . . . . . Parts Melted 27 | . 2 1 3 . . . . . 1 . . . . . . . . . . 13 1 2 . 2 . . . . 2 . Heat Transferred 12734 | 200 1275 825 1149 150 . . . . . . . . . 259 481 740 . . . 4325 185 2072 . 481 . . . . 185 407 Parts Sabotaged . | . . . . . . . . . . . . . . . . . . . . . . . . . . . . . . . Parts Stolen . | . . . . . . . . . . . . . . . . . . . . . . . . . . . . . . . Parts Stripped . | . . . . . . . . . . . . . . . . . . . . . . . . . . . . . . . Power Chain Reactions . | . . . . . . . . . . . . . . . . . . . . . . . . . . . . . . . Alert | -11 -10 -10 -9 -9 -9 -8 -8 -8 -7 -7 -7 -7 -6 -6 -6 -6 -6 -5 -5 -5 -5 -5 -5 -4 -4 -4 -3 -2 -2 -1 ------- Run | Yrd Mat Min Mat Min Exi Min Mat Sto Fac Low Low Dat Pro Fac Low Low Zio Pro Fac Ext Cet Arc Hub Fac Upp Upp Res Res DSF Acc Maximum Alert Level 5 | . . . 1 . . . 1 2 1 . . . . . . . . . . 5 3 2 1 2 . . . . 1 5 Low Security (%) 70 | 100 100 100 75 100 . 100 77 72 89 . . . . 100 . . . . 100 49 . . 95 58 . . 100 100 77 5 Level 1 15 | . . . 24 . . . 22 26 10 . . . . . . . . . . 6 . 53 4 26 . . . . 22 40 Level 2 5 | . . . . . . . . 1 . . . . . . . . . . . 19 . 46 . 14 . . . . . 2 Level 3 4 | . . . . . . . . . . . . . . . . . . . . 6 100 . . . . . . . . 27 Level 4 2 | . . . . . . . . . . . . . . . . . . . . 14 . . . . . . . . . 17 Level 5 1 | . . . . . . . . . . . . . . . . . . . . 4 . . . . . . . . . 6 High Security . | . . . . . . . . . . . . . . . . . . . . . . . . . . . . . . . Max Security . | . . . . . . . . . . . . . . . . . . . . . . . . . . . . . . . Sterilizations 1 | . . . . . . . . . . . . . . . . . . . . . . . . . . . . . 1 . Peak Influence 1651 | 15 130 91 264 162 . 113 251 493 223 . . . . 74 . . . . 64 1647 1078 560 200 428 . . 158 5 398 1651 Initial 923 | . . 18 10 85 . . 14 65 223 . . . . . . . . . 31 4 923 403 67 98 . . . . 3 238 Average 203 | 2 40 24 97 62 . 32 130 126 51 . . . . 15 . . . . 14 441 1001 382 33 195 . . 37 1 143 707 Influence Increases 13425 | 30 430 368 645 350 . 195 612 1392 403 50 633 . 386 259 255 20 . 465 138 2171 365 272 210 857 . . 256 5 427 2231 Destroy 0b10 Robot/C 7320 | . 260 300 420 240 . 100 420 800 200 40 500 . 320 120 220 20 . 340 80 900 160 80 . 340 . . 100 . 200 1160 Destroy 0b10 Robot/NC 470 | 30 20 . 65 5 . 5 50 65 30 . . . . 5 5 . . 25 . 55 10 20 10 35 . . . . . 35 Destroy Leader 1324 | . 56 50 122 40 . 30 122 234 54 10 40 . 50 50 30 . . 20 20 96 . . 2 42 . . 30 . 30 196 Allied During Kill 1664 | . . 3 . 16 . . . 73 70 . 3 . 16 . . . . 50 . 895 170 100 12 193 . . 52 . 11 . Trap Triggered on 0b10 20 | . . . . . . . . 20 . . . . . . . . . . . . . . . . . . . . . . Successful Hack 285 | . 21 . 2 . . . 2 27 26 . . . . 50 . . . . 17 18 . . . . . . 38 5 . 79 Disable Machine 585 | . 45 . 15 15 . . 15 135 . . . . . 30 . . . . 15 15 15 60 90 60 . . . . 15 60 Anti-Garrison Action 200 | . . . . . . . . . . . . . . . . . . . . . . . . . . . . . . 200 Destroy Structure 1212 | . 13 . 6 19 . . 3 8 8 . . . . 4 . . . . 6 162 10 12 96 172 . . 36 . 156 501 Partial Spotted 15 | . . . . . . . . . 15 . . . . . . . . . . . . . . . . . . . . . Lose Combat Pursuer 330 | . 15 15 15 15 . 60 . 30 . . 90 . . . . . . 30 . 30 . . . 15 . . . . 15 . Influence Decreases 11780 | 30 381 390 452 508 62 158 494 1056 802 142 364 269 384 254 207 75 . 415 179 531 1006 1085 205 647 410 . 256 . 34 984 Entered New Map 2846 | . . 31 17 135 62 . 23 90 268 35 . 269 . 2 4 11 . . 19 5 726 605 128 102 152 . . . 2 160 Time Decay 7468 | 30 371 319 425 373 . 158 471 606 265 107 364 . 334 252 203 64 . 335 160 416 180 440 77 420 258 . 216 . . 624 Lost Part 262 | . 10 20 10 . . . . 10 . . . . 10 . . . . . . . . . . . . . . . 12 190 Lost Ally 704 | . . 20 . . . . . . 119 . . . 40 . . . . 80 . 110 100 40 . 125 . . 40 . 20 10 Purge Threat 500 | . . . . . . . . 350 150 . . . . . . . . . . . . . . . . . . . . . Squads Dispatched 57 | . 2 . 4 . . . 1 9 3 . 1 . . 3 . . . . 1 6 . . . 5 . . 2 . 1 19 Investigation 13 | . 1 . 1 . . . . 3 2 . . . . 2 . . . . . . . . . . . . 2 . . 2 Extermination 9 | . . . . . . . . . 1 . . . . 1 . . . . 1 . . . . 1 . . . . . 5 Reinforcement 15 | . 1 . 3 . . . 1 2 . . . . . . . . . . . 3 . . . 1 . . . . 1 3 Assault 10 | . . . . . . . . . . . 1 . . . . . . . . 3 . . . . . . . . . 6 Garrison 10 | . . . . . . . . 4 . . . . . . . . . . . . . . . 3 . . . . . 3 Intercept . | . . . . . . . . . . . . . . . . . . . . . . . . . . . . . . . Searches Triggered . | . . . . . . . . . . . . . . . . . . . . . . . . . . . . . . . Data Miner Redirects 6 | . . . . . . . . . . . . . . 2 . . . . . . . . . . . . . . . 4 Construction Impeded 4 | . . . . . . . . 1 . . . . . . . . . . . 2 . . . 1 . . . . . . Haulers Reinforced . | . . . . . . . . . . . . . . . . . . . . . . . . . . . . . . . Active Scanning Responses . | . . . . . . . . . . . . . . . . . . . . . . . . . . . . . . . Cargo Convoy Interrupts . | . . . . . . . . . . . . . . . . . . . . . . . . . . . . . . . Stealth | -11 -10 -10 -9 -9 -9 -8 -8 -8 -7 -7 -7 -7 -6 -6 -6 -6 -6 -5 -5 -5 -5 -5 -5 -4 -4 -4 -3 -2 -2 -1 --------- Run | Yrd Mat Min Mat Min Exi Min Mat Sto Fac Low Low Dat Pro Fac Low Low Zio Pro Fac Ext Cet Arc Hub Fac Upp Upp Res Res DSF Acc Distress Signals 25 | . . 1 3 1 . . . 3 . . . . . . . . . . 2 2 2 . . . . . 8 . . 3 Communications Jammed 1 | . . . . . . . . . . . . . . . . . . . . . . . . . . . . . 1 . Distress Signals . | . . . . . . . . . . . . . . . . . . . . . . . . . . . . . . . Times Spotted 484 | . 19 16 37 11 . 7 25 39 9 2 26 . 15 7 11 1 . 43 6 63 8 34 1 16 1 . 5 . 15 67 Peak Tracking Total 14 | . 4 3 5 4 . 3 6 6 3 1 11 . 4 3 7 1 . 7 4 14 5 2 1 7 1 . 3 . 4 10 Tactical Retreats 19 | . 1 1 1 1 . 2 . 2 . . 5 . . . . . . 2 . 2 . . . 1 . . . . 1 . Traps | -11 -10 -10 -9 -9 -9 -8 -8 -8 -7 -7 -7 -7 -6 -6 -6 -6 -6 -5 -5 -5 -5 -5 -5 -4 -4 -4 -3 -2 -2 -1 ------- Run | Yrd Mat Min Mat Min Exi Min Mat Sto Fac Low Low Dat Pro Fac Low Low Zio Pro Fac Ext Cet Arc Hub Fac Upp Upp Res Res DSF Acc Traps Triggered 12 | . . . 1 . . . 1 6 . . . . . . . . . . . 3 . . 1 . . . . . . . Indirectly . | . . . . . . . . . . . . . . . . . . . . . . . . . . . . . . . Trap Hack Attempts 123 | . . . . . . . . 4 . . . . . . . . . . 55 . . . . 64 . . . . . . Triggered . | . . . . . . . . . . . . . . . . . . . . . . . . . . . . . . . Disarmed 1 | . . . . . . . . . . . . . . . . . . . . . . . . 1 . . . . . . Reprogrammed 11 | . . . . . . . . 2 . . . . . . . . . . 4 . . . . 5 . . . . . . Reused 2 | . . . . . . . . 2 . . . . . . . . . . . . . . . . . . . . . . Traps Extracted . | . . . . . . . . . . . . . . . . . . . . . . . . . . . . . . . Installed 1 | . . . . . . . . 1 . . . . . . . . . . . . . . . . . . . . . . Triggered 2 | . . . . . . . . 2 . . . . . . . . . . . . . . . . . . . . . . Most Traps Carried 1 | . . . . 1 1 1 1 1 . . . . . . . . . . . . . . . . . . . . . . Machines | -11 -10 -10 -9 -9 -9 -8 -8 -8 -7 -7 -7 -7 -6 -6 -6 -6 -6 -5 -5 -5 -5 -5 -5 -4 -4 -4 -3 -2 -2 -1 ---------- Run | Yrd Mat Min Mat Min Exi Min Mat Sto Fac Low Low Dat Pro Fac Low Low Zio Pro Fac Ext Cet Arc Hub Fac Upp Upp Res Res DSF Acc Machines Disabled 46 | . 3 . 1 1 . . 1 9 . . 2 . . 2 . 1 . . 1 4 1 4 6 4 . 1 . . 1 4 Max in Single Turn 2 | . 2 . 1 1 . . 1 1 . . 1 . . 1 . 1 . . 1 1 1 1 . 2 . 1 . . 1 1 Garrison Access 2 | . . . . . . . . . . . . . . . . . . . 1 . . . . . . . . . . 1 Network Hub 1 | . . . . . . . . . . . . . . . . . . . . . . . 1 . . . . . . . Energy Cycler 1 | . . . . . . . . . . . . . . . . . . . . . . . . . . . . . . 1 Machines Repaired . | . . . . . . . . . . . . . . . . . . . . . . . . . . . . . . . Machines Dismantled 7 | . . . . . . . . 5 . . . . . . . . . . . . 1 . . . . . . . . 1 Machines Sabotaged . | . . . . . . . . . . . . . . . . . . . . . . . . . . . . . . . Overloaded Fab Kills . | . . . . . . . . . . . . . . . . . . . . . . . . . . . . . . . Hacking | -11 -10 -10 -9 -9 -9 -8 -8 -8 -7 -7 -7 -7 -6 -6 -6 -6 -6 -5 -5 -5 -5 -5 -5 -4 -4 -4 -3 -2 -2 -1 --------- Run | Yrd Mat Min Mat Min Exi Min Mat Sto Fac Low Low Dat Pro Fac Low Low Zio Pro Fac Ext Cet Arc Hub Fac Upp Upp Res Res DSF Acc Machines Accessed 79 | . 7 . 4 . 2 . 2 10 6 1 4 3 . 9 . 3 . 3 3 7 . . 1 . 2 . 7 1 . 4 Terminals 34 | . 5 . 2 . . . 1 7 5 . . . . 4 . . . 1 . 6 . . 1 . 1 . . 1 . . Fabricators 3 | . . . . . . . . . . . . . . 1 . . . . . . . . . . . . 1 . . 1 Repair Stations 12 | . 1 . . . . . . 2 1 . . . . 1 . . . 1 2 1 . . . . . . 2 . . 1 Recycling Units 3 | . 1 . 1 . . . . . . . . . . . . . . 1 . . . . . . . . . . . . Scanalyzers 7 | . . . 1 . . . 1 . . . . . . 2 . . . . . . . . . . . . 2 . . 1 Garrison Access 6 | . . . . . . . . 1 . . . . . 1 . . . . 1 . . . . . . . 2 . . 1 Total Hacks 220 | . 17 . 14 . 2 . 7 26 16 1 10 21 . 19 . 9 . 4 12 17 . . 2 . 2 . 23 2 . 16 Successful 129 | . 7 . 7 . 2 . 4 14 6 1 10 21 . 7 . 9 . 3 7 10 . . . . 2 . 6 1 . 12 Failed 88 | . 9 . 6 . . . 3 12 10 . . . . 12 . . . 1 5 7 . . 2 . . . 16 1 . 4 Catastrophic 15 | . 3 . 1 . . . . . 2 . . . . 2 . . . 1 1 2 . . . . . . 3 . . . Database Lockouts 3 | . 1 . 1 . . . . . . . . . . . . . . . . . . . . . . . 1 . . . Manual 52 | . 8 . 5 . 1 . 2 9 3 . . . . 6 . . . . . 7 1 . 2 . . . 2 . . 6 Terminals 80 | . 14 . 8 . . . 2 19 14 . . . . 7 . . . 1 . 10 . . 2 . 1 . . 2 . . Fabricators 15 | . . . . . . . . . . . . . . 3 . . . . . . . . . . . . 4 . . 8 Repair Stations 43 | . 2 . . . . . . 4 2 . . . . 3 . . . 2 11 7 . . . . . . 10 . . 2 Recycling Units 4 | . 1 . 2 . . . . . . . . . . . . . . 1 . . . . . . . . . . . . Scanalyzers 22 | . . . 4 . . . 5 . . . . . . 5 . . . . . . . . . . . . 4 . . 4 Garrison Access 12 | . . . . . . . . 3 . . . . . 1 . . . . 1 . . . . . . . 5 . . 2 Terminal Hacks 67 | . 5 . 1 . 2 . . 9 3 1 10 21 . 1 . 9 . 1 . 1 . . . . 2 . . 1 . . Record 23 | . . . . . 1 . . . . 1 7 6 . . . 7 . . . . . . . . 1 . . . . . Part Schematic 10 | . 1 . . . . . . 1 . . . 8 . . . . . . . . . . . . . . . . . . Robot Schematic 4 | . . . . . . . . . . . . 4 . . . . . . . . . . . . . . . . . . Robot Analysis 5 | . 2 . 1 . . . . 2 . . . . . . . . . . . . . . . . . . . . . . Prototype ID Bank 5 | . 1 . . . . . . 1 . . . 3 . . . . . . . . . . . . . . . . . . Open Door 7 | . . . . . . . . . . . 3 . . . . 2 . 1 . . . . . . 1 . . . . . Open DSF 1 | . . . . . . . . . . . . . . . . . . . . . . . . . . . . 1 . . Branch Access Points 2 | . . . . . . . . . 1 . . . . 1 . . . . . . . . . . . . . . . . Unreport Threat 4 | . . . . . . . . 3 1 . . . . . . . . . . . . . . . . . . . . . Locate Traps 2 | . 1 . . . . . . 1 . . . . . . . . . . . . . . . . . . . . . . Zone Layout 3 | . . . . . . . . 1 1 . . . . . . . . . . 1 . . . . . . . . . . Proto ID Catalog 1 | . . . . . 1 . . . . . . . . . . . . . . . . . . . . . . . . . Fabricator Hacks 8 | . . . . . . . . . . . . . . 1 . . . . . . . . . . . . 1 . . 6 Load Schematic 5 | . . . . . . . . . . . . . . 1 . . . . . . . . . . . . 1 . . 3 Build 3 | . . . . . . . . . . . . . . . . . . . . . . . . . . . . . . 3 Repair Station Hacks 25 | . 2 . . . . . . 4 2 . . . . . . . . 1 6 6 . . . . . . 4 . . . Scan Component 15 | . 1 . . . . . . 2 1 . . . . . . . . 1 4 3 . . . . . . 3 . . . Repair 10 | . 1 . . . . . . 2 1 . . . . . . . . . 2 3 . . . . . . 1 . . . Recycling Unit Hacks 2 | . . . 1 . . . . . . . . . . . . . . 1 . . . . . . . . . . . . Retrieve Components 2 | . . . 1 . . . . . . . . . . . . . . 1 . . . . . . . . . . . . Scanalyzer 16 | . . . 4 . . . 4 . . . . . . 4 . . . . . . . . . . . . 1 . . 3 Insert Component 1 | . . . . . . . . . . . . . . 1 . . . . . . . . . . . . . . . . Retrieve Study 15 | . . . 4 . . . 4 . . . . . . 3 . . . . . . . . . . . . 1 . . 3 Garrison Access Hacks 1 | . . . . . . . . . . . . . . . . . . . 1 . . . . . . . . . . . Seal Access 1 | . . . . . . . . . . . . . . . . . . . 1 . . . . . . . . . . . Unauthorized Hacks 10 | . . . 1 . . . . 1 1 . . . . 1 . . . . . 3 . . . . . . . . . 3 Terminals 7 | . . . 1 . . . . 1 1 . . . . 1 . . . . . 3 . . . . . . . . . . Assimilate 1 | . . . . . . . . . . . . . . . . . . . . 1 . . . . . . . . . . Botnet 4 | . . . 1 . . . . 1 . . . . . 1 . . . . . 1 . . . . . . . . . . Disrupt 1 | . . . . . . . . . . . . . . . . . . . . 1 . . . . . . . . . . Search 1 | . . . . . . . . . 1 . . . . . . . . . . . . . . . . . . . . . Fabricators 1 | . . . . . . . . . . . . . . . . . . . . . . . . . . . . . . 1 Prioritize 1 | . . . . . . . . . . . . . . . . . . . . . . . . . . . . . . 1 Repair Stations 1 | . . . . . . . . . . . . . . . . . . . . . . . . . . . . . . 1 Patch 1 | . . . . . . . . . . . . . . . . . . . . . . . . . . . . . . 1 Recycling Units . | . . . . . . . . . . . . . . . . . . . . . . . . . . . . . . . Scanalyzers . | . . . . . . . . . . . . . . . . . . . . . . . . . . . . . . . Garrison Access 1 | . . . . . . . . . . . . . . . . . . . . . . . . . . . . . . 1 Jam 1 | . . . . . . . . . . . . . . . . . . . . . . . . . . . . . . 1 Data Cores Recovered 2 | . . . . . . . . 1 . . . . . . . . . . . . . . . 1 . . . . . . Used . | . . . . . . . . . . . . . . . . . . . . . . . . . . . . . . . Hacking Detections 52 | . 7 . 4 . . . 1 8 6 . . . . 8 . . . 1 2 6 . . 1 . . . 6 . . 2 Full Trace Events 6 | . 1 . . . . . . 1 1 . . . . 2 . . . . . . . . . . . . 1 . . . Feedback Events 2 | . . . . . . . . 1 . . . . . . . . . . . . . . . . . . 1 . . . Corruption 2 | . . . . . . . . 1 . . . . . . . . . . . . . . . . . . 1 . . . Feedback Blocked . | . . . . . . . . . . . . . . . . . . . . . . . . . . . . . . . Robot Schematics Acquired 4 | . . . . . . . . . . . . 4 . . . . . . . . . . . . . . . . . . Robots Built . | . . . . . . . . . . . . . . . . . . . . . . . . . . . . . . . Authchips . | . . . . . . . . . . . . . . . . . . . . . . . . . . . . . . . Time . | . . . . . . . . . . . . . . . . . . . . . . . . . . . . . . . Total Robot Build Rating . | . . . . . . . . . . . . . . . . . . . . . . . . . . . . . . . Part Schematics Acquired 10 | . 1 . . . . . . 1 . . . 8 . . . . . . . . . . . . . . . . . . Parts Built 9 | . . . . . . . . . . . . . . . . . . . . . . . . . . . . . . 9 Authchips 3 | . . . . . . . . . . . . . . . . . . . . . . . . . . . . . . 3 Time 36 | . . . . . . . . . . . . . . . . . . . . . . . . . . . . . . 36 Total Part Build Rating 9 | . . . . . . . . . . . . . . . . . . . . . . . . . . . . . . 9 Part Studies Acquired 15 | . . . 4 . . . 4 . . . . . . 3 . . . . . . . . . . . . 1 . . 3 Parts Repaired 10 | . 1 . . . . . . 2 1 . . . . . . . . . 2 3 . . . . . . 1 . . . Time 487 | . 26 . . . . . . 102 25 . . . . . . . . . 76 150 . . . . . . 108 . . . Parts Recycled . | . . . . . . . . . . . . . . . . . . . . . . . . . . . . . . . Recycled Matter . | . . . . . . . . . . . . . . . . . . . . . . . . . . . . . . . Retrieved Matter . | . . . . . . . . . . . . . . . . . . . . . . . . . . . . . . . Retrieved Components 12 | . . . 9 . . . . . . . . . . . . . . 3 . . . . . . . . . . . . Parts Scanalyzed . | . . . . . . . . . . . . . . . . . . . . . . . . . . . . . . . Part Schematics Acquired . | . . . . . . . . . . . . . . . . . . . . . . . . . . . . . . . Parts Damaged . | . . . . . . . . . . . . . . . . . . . . . . . . . . . . . . . Bothacking | -11 -10 -10 -9 -9 -9 -8 -8 -8 -7 -7 -7 -7 -6 -6 -6 -6 -6 -5 -5 -5 -5 -5 -5 -4 -4 -4 -3 -2 -2 -1 ------------ Run | Yrd Mat Min Mat Min Exi Min Mat Sto Fac Low Low Dat Pro Fac Low Low Zio Pro Fac Ext Cet Arc Hub Fac Upp Upp Res Res DSF Acc Used RIF Installer . | . . . . . . . . . . . . . . . . . . . . . . . . . . . . . . . Robots Hacked 7 | . . . . . . . . . . . . 1 . . . . 1 . . 1 1 2 . 1 . . . . . . Non-combat 3 | . . . . . . . . . . . . . . . . . . . . . . 2 . 1 . . . . . . Combat 4 | . . . . . . . . . . . . 1 . . . . 1 . . 1 1 . . . . . . . . . Robot Hacks Applied 7 | . . . . . . . . . . . . 1 . . . . 1 . . 1 1 2 . 1 . . . . . . parse_system 4 | . . . . . . . . . . . . 1 . . . . 1 . . 1 1 . . . . . . . . . no_distress 1 | . . . . . . . . . . . . . . . . . . . . . . . . 1 . . . . . . check_alert 2 | . . . . . . . . . . . . . . . . . . . . . . 2 . . . . . . . . Relay Couplers Released . | . . . . . . . . . . . . . . . . . . . . . . . . . . . . . . . Fabnet Peak Effective % . | . . . . . . . . . . . . . . . . . . . . . . . . . . . . . . . Robots Rewired 28 | . . . . . . . . . . . 2 . . . . . . 3 . 19 . . . . . 4 . . . . Allies Hacked . | . . . . . . . . . . . . . . . . . . . . . . . . . . . . . . . Hacks Repelled . | . . . . . . . . . . . . . . . . . . . . . . . . . . . . . . . Allies | -11 -10 -10 -9 -9 -9 -8 -8 -8 -7 -7 -7 -7 -6 -6 -6 -6 -6 -5 -5 -5 -5 -5 -5 -4 -4 -4 -3 -2 -2 -1 -------- Run | Yrd Mat Min Mat Min Exi Min Mat Sto Fac Low Low Dat Pro Fac Low Low Zio Pro Fac Ext Cet Arc Hub Fac Upp Upp Res Res DSF Acc Total Allies 61 | . . 3 . 2 . . . 10 . . 2 . . . . . 2 4 . 28 5 . . . . 4 . . . 1 Largest Group 23 | . . 3 . 2 2 . . 10 10 . 2 2 2 . . . 2 5 . 23 16 15 11 7 . 4 4 1 1 1 Highest-Rated Group 870 | . . 40 . 39 39 . . 173 173 . 46 46 46 . . . 56 141 . 789 870 870 659 409 . 137 137 30 30 45 Highest-Rated Ally 159 | . . 16 . 31 31 . . 29 29 . 30 30 30 . . . 28 41 . 159 147 125 96 96 . 47 47 30 30 45 Initial Warlord ECA Mod 9 | . . . . . . . . . . . . . . . . . . . . . . . . . . . . . . 9 Total Orders 23 | . . . . . . . . . . . . . . . . . . 2 . 4 1 2 1 4 . . 4 . 1 4 STAY 8 | . . . . . . . . . . . . . . . . . . 2 . 2 . 1 . 1 . . 1 . 1 . ROAM 1 | . . . . . . . . . . . . . . . . . . . . . 1 . . . . . . . . . FOLLOW 3 | . . . . . . . . . . . . . . . . . . . . 2 . 1 . . . . . . . . RETURN 11 | . . . . . . . . . . . . . . . . . . . . . . . 1 3 . . 3 . . 4 Ally Attacks 429 | . . 14 . 5 . . . 34 63 . . . 11 . . . . 24 . 160 36 20 1 55 . . 6 . . . Total Damage 8347 | . . 144 . 41 . . . 353 590 . . . 242 . . . . 662 . 2992 630 622 302 1611 . . 158 . . . Kills 61 | . . 1 . 2 . . . 5 5 . . . 2 . . . . 4 . 21 5 4 3 8 . . 1 . . . Allies Corrupted 4 | . . . . . . . . . . . . . . . . . . . . . . . 3 1 . . . . . . Allies Melted 1 | . . . . . . . . . . . . . . . . . . 1 . . . . . . . . . . . . Intel | -11 -10 -10 -9 -9 -9 -8 -8 -8 -7 -7 -7 -7 -6 -6 -6 -6 -6 -5 -5 -5 -5 -5 -5 -4 -4 -4 -3 -2 -2 -1 ------- Run | Yrd Mat Min Mat Min Exi Min Mat Sto Fac Low Low Dat Pro Fac Low Low Zio Pro Fac Ext Cet Arc Hub Fac Upp Upp Res Res DSF Acc Active Infowar (turns) 4449 | . . . . . . . . . . . . . . . 851 1399 251 795 . . . . . . 742 382 . . 29 . IFF 4386 | . . . . . . . . . . . . . . . 851 1365 251 795 . . . . . . 742 382 . . . . Jamming 63 | . . . . . . . . . . . . . . . . 34 . . . . . . . . . . . . 29 . Robot Analysis Total 5 | . 2 . 1 . . . . 2 . . . . . . . . . . . . . . . . . . . . . . Derelict Logs Recovered 17 | . . 2 . 1 . . . . . 3 2 . 2 . 1 2 1 2 . . . . . . 1 . . . . . Drone Launches 11 | . . . . . . . . . . . . . . . . . . . . . . . 1 3 . . 3 . . 4 Drone Recoveries 11 | . . . . . . . . . . . . . . . . . . . . . . . 1 3 . . 3 . . 4 Exploration | -11 -10 -10 -9 -9 -9 -8 -8 -8 -7 -7 -7 -7 -6 -6 -6 -6 -6 -5 -5 -5 -5 -5 -5 -4 -4 -4 -3 -2 -2 -1 ------------- Run | Yrd Mat Min Mat Min Exi Min Mat Sto Fac Low Low Dat Pro Fac Low Low Zio Pro Fac Ext Cet Arc Hub Fac Upp Upp Res Res DSF Acc Turns Passed 35259 | 165 1278 1589 1496 1276 529 803 2005 2694 685 1649 1994 153 1362 872 1236 1401 1602 1881 635 2102 375 1080 208 1055 746 459 1512 17 269 2131 Spaces Moved 15750 | 69 568 670 630 588 263 339 871 891 331 902 1044 88 745 409 634 722 766 893 236 828 159 111 112 479 382 273 782 10 96 859 Core 3 | 3 . . . . . . . . . . . . . . . . . . . . . . . . . . . . . . Treads 14887 | 66 378 . 630 588 263 339 871 891 331 902 1044 88 745 409 634 722 766 893 236 828 159 111 112 479 382 273 782 10 96 859 Legs 860 | . 190 670 . . . . . . . . . . . . . . . . . . . . . . . . . . . . Wheels . | . . . . . . . . . . . . . . . . . . . . . . . . . . . . . . . Hover . | . . . . . . . . . . . . . . . . . . . . . . . . . . . . . . . Flight . | . . . . . . . . . . . . . . . . . . . . . . . . . . . . . . . Fastest Speed 50 | 50 160 190 160 200 200 200 200 200 162 165 167 170 165 165 162 162 167 167 167 160 160 160 160 160 160 160 160 160 160 152 Average Speed 173 | 155 170 190 189 200 200 200 200 200 162 166 169 170 167 165 163 164 171 168 167 163 160 160 160 160 160 160 160 160 163 163 Slowest Speed 240 | 160 240 190 200 200 200 200 200 200 165 167 170 170 170 165 165 167 207 226 167 220 160 160 160 160 160 160 160 160 165 225 Overloaded Moves . | . . . . . . . . . . . . . . . . . . . . . . . . . . . . . . . Propulsion Burnouts . | . . . . . . . . . . . . . . . . . . . . . . . . . . . . . . . Robots Hopped . | . . . . . . . . . . . . . . . . . . . . . . . . . . . . . . . Potential Cave-ins 6 | . . . . . . . . . . . . . . . . . . . . . . . . . . . . . . 6 Cave-ins Triggered . | . . . . . . . . . . . . . . . . . . . . . . . . . . . . . . . Exploration Rate (%) 61 | 4 80 96 50 99 68 90 57 95 13 96 92 74 80 14 80 95 84 81 8 84 66 70 17 13 57 33 27 . 91 28 Regions Visited 30 Branch Regions 19 Pre-discovered Areas 6 | . . . . . 1 . . . . 1 1 1 . . . 2 . . . . . . . . . . . . . . Known Exits Taken 10 | . . . . . . . 1 1 1 . . . . 1 . . . 1 . . . . 1 1 . 1 1 1 . . Unknown Exits Taken 19 | 1 1 1 1 1 1 1 . . . 1 1 1 1 . 1 1 1 . 1 1 1 1 . . 1 . . . . . Scrap Searched 36 | . . 2 . 1 . 1 . . . 4 10 . 4 . 2 4 4 1 . . . . . . 1 2 . . . . Spaces Dug 81 | . . . 1 . . . . 1 5 . 9 . . 1 . 16 . . 1 1 . . . 8 4 . 5 . 2 27 Terrain Destroyed 811 | . 24 . 1 20 . . . 1 5 . 95 . . 1 39 16 . 60 1 88 . 5 . 109 10 . 16 . 82 238 Melee 74 | . . . 1 . . . . 1 5 . 9 . . 1 . 16 . . 1 1 . . . 8 4 . 5 . . 22 Projectile 104 | . . . . . . . . . . . . . . . . . . 4 . 16 . 5 . 13 6 . . . 13 47 AOE 631 | . 24 . . 20 . . . . . . 86 . . . 39 . . 56 . 71 . . . 88 . . 11 . 69 167 Terrain Rammed . | . . . . . . . . . . . . . . . . . . . . . . . . . . . . . . . Walls Destroyed . | . . . . . . . . . . . . . . . . . . . . . . . . . . . . . . . Machines Disabled . | . . . . . . . . . . . . . . . . . . . . . . . . . . . . . . . Actions | -11 -10 -10 -9 -9 -9 -8 -8 -8 -7 -7 -7 -7 -6 -6 -6 -6 -6 -5 -5 -5 -5 -5 -5 -4 -4 -4 -3 -2 -2 -1 --------- Run | Yrd Mat Min Mat Min Exi Min Mat Sto Fac Low Low Dat Pro Fac Low Low Zio Pro Fac Ext Cet Arc Hub Fac Upp Upp Res Res DSF Acc Total 21833 | 99 744 903 830 656 267 432 1018 1544 438 1040 1175 90 805 562 800 873 1058 1206 456 1408 247 949 140 722 504 292 1024 11 181 1359 Wait 4006 | 4 64 159 66 33 . 74 49 443 58 121 39 . 12 104 127 76 245 256 136 308 44 797 22 134 109 2 194 2 47 281 Move 15719 | 68 567 669 629 587 262 338 870 890 330 901 1043 87 744 408 633 721 765 892 235 827 158 110 111 478 381 272 781 9 95 858 Hop . | . . . . . . . . . . . . . . . . . . . . . . . . . . . . . . . Pick Up 169 | 7 11 7 25 6 2 1 12 10 8 2 2 . 5 5 1 5 15 3 3 6 3 1 2 4 1 1 2 . 7 12 Fast Attach 115 | 6 5 1 5 . . . 6 8 2 2 3 . 3 3 2 4 5 3 7 12 5 2 . . . 1 14 . 2 14 Attach 49 | . 1 2 3 . . . 4 1 2 . . . 2 . 4 . . . 2 2 1 . . 2 . . 2 . 5 16 Detach 31 | . 3 . . . . . 1 . 1 1 1 . 1 . 2 4 2 . 1 1 . 1 . . . . 3 . 2 7 Swap 241 | . 7 8 15 3 1 2 8 30 6 4 11 2 4 9 9 10 5 12 1 11 7 2 2 19 5 4 8 . 3 33 Drop 222 | . 7 9 26 7 2 3 15 21 6 3 4 . 6 8 . 10 20 6 6 13 11 2 2 1 1 2 12 . 5 14 Fire 729 | 14 73 41 52 13 . 13 46 74 16 4 39 . 28 18 22 22 . 26 7 62 9 32 . 11 3 3 3 . 15 83 Melee 137 | . . . 1 . . . . 11 5 . 15 1 . 5 . 21 1 7 2 9 1 2 . 9 4 7 5 . . 31 Ram . | . . . . . . . . . . . . . . . . . . . . . . . . . . . . . . . Kick 11 | . 4 7 . . . . . . . . . . . . . . . . . . . . . . . . . . . . Crush 49 | . 2 . 8 7 . 1 7 5 3 2 . . . 2 . . . . 1 8 . . 1 . . . . . . 2 Escape Stasis 12 | . . . . . . . . 4 . . . . . . . . . . . 6 . . . . . . . . . 2 Rewire 165 | . . . . . . . . 2 1 . 18 . . . . . . 1 . 143 . . . . . . . . . . Trap 124 | . . . . . . . . 5 . . . . . . . . . . 55 . . . . 64 . . . . . . Miscellaneous 54 | . . . . . . . . 40 . . . . . . . . . . . . 8 . . . . . . . . 6 Route ------- -11/Scrapyard -10/Materials (discovered 4 exits: *Mat x3 / [*Min]) -10/Mines (discovered 3 exits: *Mat x2 / [*Sub]) -9/Materials (discovered 2 exits: *Mat / [*Min]) -9/Mines (discovered 3 exits: *Mat x2 / *Exi) -9/Exiles -8/Mines (discovered 2 exits: *Mat x2) -8/Materials (discovered 2 exits: Fac / *Sto) -8/Storage -7/Factory (discovered 2 exits: *Low x2) -7/Lower Caves -7/Lower Caves (discovered 2 exits: *Fac / *Dat) -7/Data Miner -6/Proximity Caves -6/Factory (discovered 3 exits: Fac / *Low x2) -6/Lower Caves -6/Lower Caves (discovered 2 exits: *Fac / [*Zio]) -6/Zion -5/Proximity Caves -5/Factory -5/Extension (discovered 2 exits: *Fac / *Cet) -5/Cetus (discovered 2 exits: *Fac / [*Arc]) -5/Archives -5/Hub_04(d) (discovered 4 exits: *Fac x4) -4/Factory (discovered 5 exits: Res x4 / *Upp) -4/Upper Caves -4/Upper Caves -3/Research (discovered 6 exits: *Res x3 / Arm / Qua x2) -2/Research -2/DSF -1/Access To Epsilon Eridani History --------- Turn | Location | Event 4 | -11/Scrapyard | Discovered new exit (range 16) 166 | -11/Scrapyard | Entered Materials 201 | -10/Materials | Discovered new exit (range 16) 312 | -10/Materials | Build established: Mutant 421 | -10/Materials | Discovered new exit (range 6) 922 | -10/Materials | Discovered new exit (range 5) 961 | -10/Materials | Core integrity fell below 50% 1133 | -10/Materials | Central database locked down 1176 | -10/Materials | Discovered new exit (range 14) 1417 | -10/Materials | Repaired Lgt. Treads 1444 | -10/Materials | Entered Mines 1472 | -10/Mines | Met a Derelict bent on vengeance 1569 | -10/Mines | Discovered new exit (range 11) 1689 | -10/Mines | Discovered new exit (range 4) 1803 | -10/Mines | Discovered new exit (range 8) 2411 | -10/Mines | Assisted by bots powering up and referring to "LRC-V3" 2554 | -10/Mines | Lost 3 allies 2691 | -10/Mines | Learned Materials terminal intel 2704 | -10/Mines | Core integrity fell below 20% 3020 | -10/Mines | Build established: Scavenger-Mutant 3033 | -10/Mines | Entered Materials 3033 | -9/Materials | Evolved 2 slots: Weapon x2 3034 | -9/Materials | Loaded intel: 12 terminal locations 3237 | -9/Materials | Central database locked down 3325 | -9/Materials | Build established: Scavenger-Tank 3709 | -9/Materials | Build established: Scientist-Tank 4215 | -9/Materials | Discovered new exit (range 16) 4399 | -9/Materials | Discovered new exit (range 15) 4437 | -9/Materials | Build established: Tank 4529 | -9/Materials | Entered Mines 4539 | -9/Mines | Deemed a non-threat by the Exiles lab entrance 4539 | -9/Mines | Discovered new exit (range 5) 4779 | -9/Mines | Found a hidden stash of uninstalled traps 4828 | -9/Mines | Discovered new exit (range 7) 4975 | -9/Mines | Learned location of 1 exit from Materials 5071 | -9/Mines | Found DCF Scrap (13 items) 5112 | -9/Mines | Discovered new exit (range 11) 5265 | -9/Mines | Received a Rocket Launcher from a helpful Derelict 5805 | -9/Mines | Entered Exiles 5805 | -9/Exiles | Accompanied by 2 allies 5835 | -9/Exiles | Led the pair of lost Derelicts to a safe place 5870 | -9/Exiles | Met 8R-AWN 5902 | -9/Exiles | Met EX-HEX 5976 | -9/Exiles | Met EX-DEC 6012 | -9/Exiles | Learned location of Zion (-6) 6056 | -9/Exiles | Met EX-BIN 6078 | -9/Exiles | Aligned with FarCom system 6080 | -9/Exiles | Given EX-Vault access code 6130 | -9/Exiles | Opened EX-Vault 6143 | -9/Exiles | Found Superbattery 6182 | -9/Exiles | Warned to stay clear of 0b10 Research branches 6308 | -9/Exiles | Discovered new exit (range 15) 6334 | -9/Exiles | Left Exiles lab with Superbattery 6334 | -9/Exiles | Entered Mines 6641 | -8/Mines | Build established: Skirmisher 6666 | -8/Mines | Discovered new exit (range 8) 7052 | -8/Mines | Discovered new exit (range 5) 7137 | -8/Mines | Entered Materials 7137 | -8/Materials | Evolved 2 slots: Propulsion x1, Utility x1 7138 | -8/Materials | Identified exit to Storage 7139 | -8/Materials | Identified exit to Factory 8782 | -8/Materials | Build established: Tank 9142 | -8/Materials | Entered Storage 10002 | -8/Storage | Discovered exit to Factory (range 16) 10073 | -8/Storage | Garrison activated, responded to threat 10239 | -8/Storage | Repaired Imp. Assault Rifle 10360 | -8/Storage | Repaired Imp. Assault Rifle 11785 | -8/Storage | Assisted by bots powering up and referring to "LRC-V3" 11801 | -8/Storage | Garrison activated, responded to threat 11836 | -8/Storage | Entered Factory 11836 | -7/Factory | Accompanied by 10 allies 11836 | -7/Factory | Evolved 2 slots: Propulsion x1, Utility x1 11908 | -7/Factory | Identified exit to Lower Caves 12095 | -7/Factory | Build established: Commander-Tank 12291 | -7/Factory | Repaired Imp. Assault Rifle 12362 | -7/Factory | Lost 6 allies 12521 | -7/Factory | Entered Lower Caves 12803 | -7/Lower Caves | Learned 4 Factory zone layouts 12808 | -7/Lower Caves | Build established: Gunner 12867 | -7/Lower Caves | Entered a destroyed Warlord outpost 12957 | -7/Lower Caves | Learned Factory trap positions 13955 | -7/Lower Caves | Discovered new exit (range 4) 14170 | -7/Lower Caves | Entered another Lower Caves area 14214 | -7/Lower Caves | Entered an active Warlord outpost 14241 | -7/Lower Caves | Learned Factory trap positions 14241 | -7/Lower Caves | Learned Research trap positions 14241 | -7/Lower Caves | Learned Research emergency access door positions 14241 | -7/Lower Caves | Learned Armory security intel 14335 | -7/Lower Caves | Discovered new exit (range 16) 14611 | -7/Lower Caves | Learned Factory terminal intel 14710 | -7/Lower Caves | Attracted the attention of an 0b10 outpost 14750 | -7/Lower Caves | Destroyed 11 combat bots 15107 | -7/Lower Caves | Discovered new exit (range 9) 15391 | -7/Lower Caves | Attracted the attention of an 0b10 checkpoint 16164 | -7/Lower Caves | Entered Data Miner 16164 | -7/Data Miner | Accompanied by 2 allies 16164 | -7/Data Miner | Discovered new exit (range 6) 16197 | -7/Data Miner | Met Data Miner 16254 | -7/Data Miner | Learned location of Section 7 (-2) 16254 | -7/Data Miner | Acquired the access code to Warlord's prototype stash 16276 | -7/Data Miner | Received God Mode back door access code from Data Miner 16317 | -7/Data Miner | Entered Proximity Caves 16317 | -6/Proximity Caves | Accompanied by 2 allies 16493 | -6/Proximity Caves | Attracted the attention of an 0b10 checkpoint 16563 | -6/Proximity Caves | Learned Factory stockpile data 16661 | -6/Proximity Caves | Spotted B-75 Beast 16674 | -6/Proximity Caves | Destroyed B-75 Beast 17461 | -6/Proximity Caves | Learned 12 Factory zone layouts 17549 | -6/Proximity Caves | Discovered new exit (range 6) 17679 | -6/Proximity Caves | Entered Factory 17679 | -6/Factory | Evolved 2 slots: Weapon x2 17680 | -6/Factory | Identified exit to Factory 17681 | -6/Factory | Loaded intel: 109 trap records 17683 | -6/Factory | Loaded intel: 26 terminal locations 17714 | -6/Factory | Incoming investigation squad redirected 17777 | -6/Factory | Identified exit to Lower Caves 18274 | -6/Factory | Incoming investigation squad redirected 18551 | -6/Factory | Entered Lower Caves 18552 | -6/Lower Caves | Encountered a Warlord checkpoint 18850 | -6/Lower Caves | Build established: Scientist-Executioner 19110 | -6/Lower Caves | Lost 4 parts (1n3w) 19374 | -6/Lower Caves | Build established: Scientist-Gunner 19444 | -6/Lower Caves | Destroyed 7 combat bots 19548 | -6/Lower Caves | Learned 4 Factory zone layouts 19759 | -6/Lower Caves | Discovered new exit (range 6) 19787 | -6/Lower Caves | Entered another Lower Caves area 19859 | -6/Lower Caves | Discovered exit to Factory (range 8) 20208 | -6/Lower Caves | Build established: Derelict-Executioner 20217 | -6/Lower Caves | Entered an active Warlord outpost 20238 | -6/Lower Caves | Learned Factory trap positions 20238 | -6/Lower Caves | Learned Armory emergency access door positions 20489 | -6/Lower Caves | Learned Factory terminal intel 20669 | -6/Lower Caves | Attracted the attention of an 0b10 checkpoint 20960 | -6/Lower Caves | Found DRS Beacon 21033 | -6/Lower Caves | Discovered new exit (range 3) 21188 | -6/Lower Caves | Entered Zion 21264 | -6/Zion | Build established: Scavenger-Executioner 21294 | -6/Zion | Discovered new exit (range 14) 21450 | -6/Zion | Found Prototype Processor 21453 | -6/Zion | Found Prototype Processor 21456 | -6/Zion | Found Prototype Processor 21462 | -6/Zion | Found Prototype Processor 21499 | -6/Zion | Identified Exp. Terrain Scan Processor 21565 | -6/Zion | Identified Spectral Analyzer 21584 | -6/Zion | Identified Exp. Melee Analysis Suite 21700 | -6/Zion | Identified Exp. Armor Integrity Analyzer 21905 | -6/Zion | Given the Hacking Drone Bay 21906 | -6/Zion | Found Prototype Device 21906 | -6/Zion | Identified Hacking Drone Bay 22048 | -6/Zion | Found Prototype Special Weapon 22048 | -6/Zion | Identified RU-N14's Throwing Claymores 22057 | -6/Zion | Found RU-N14's Throwing Claymores 22218 | -6/Zion | Gained Derelict followers 22268 | -6/Zion | Rebuked by Imprinter 22790 | -6/Zion | Entered Proximity Caves 22790 | -5/Proximity Caves | Accompanied by 2 allies 22792 | -5/Proximity Caves | Greeted by an Infiltrator in a former 0b10 base 22890 | -5/Proximity Caves | Former 0b10 base attacked by MAIN.C 23100 | -5/Proximity Caves | Destroyed 7 combat bots 23106 | -5/Proximity Caves | Lost 18 allies 23190 | -5/Proximity Caves | 0b10 base defense nominally successful 23241 | -5/Proximity Caves | Lost 5 allies 23810 | -5/Proximity Caves | Discovered exit to Factory (range 3) 24349 | -5/Proximity Caves | Learned Factory emergency access door positions 24671 | -5/Proximity Caves | Entered Factory 24671 | -5/Factory | Evolved 2 slots: Weapon x2 24673 | -5/Factory | Loaded intel: 101 trap records 24675 | -5/Factory | Loaded intel: 28 terminal locations 24998 | -5/Factory | Discovered new exit (range 16) 25090 | -5/Factory | Repaired Coil Gun 25117 | -5/Factory | Repaired Lgt. Assault Rifle+ 25306 | -5/Factory | Entered Extension 25611 | -5/Extension | Rescued a captive Derelict 25613 | -5/Extension | Rescued a captive Derelict 25736 | -5/Extension | Rescued A7 25826 | -5/Extension | Rescued a captive Derelict 26303 | -5/Extension | Spotted B-75 Beast 26312 | -5/Extension | Destroyed B-75 Beast 26333 | -5/Extension | Spotted B-75 Beast 26337 | -5/Extension | Allies destroyed B-75 Beast 26349 | -5/Extension | Build established: Commander-Executioner 26607 | -5/Extension | Rescued a captive Derelict 26692 | -5/Extension | Repaired KE Penetrator 26749 | -5/Extension | Repaired KE Penetrator 26789 | -5/Extension | Repaired Reactive Plating 26851 | -5/Extension | Rescued a captive Derelict 26851 | -5/Extension | Rescued a captive Derelict 27025 | -5/Extension | Rescued a captive Derelict 27106 | -5/Extension | First assault squad dispatched 27337 | -5/Extension | Discovered new exit (range 10) 27339 | -5/Extension | Discovered new exit (range 6) 27408 | -5/Extension | Entered Cetus 27408 | -5/Cetus | Accompanied by 16 allies (A7) 27413 | -5/Cetus | Acquired a Cetus Manufacturing Module code from A7 27433 | -5/Cetus | Spotted Cetus Guard 27433 | -5/Cetus | Spotted Cetus Guard 27434 | -5/Cetus | Spotted Cetus Guard 27434 | -5/Cetus | Spotted Cetus Guard 27443 | -5/Cetus | Destroyed Cetus Guard 27445 | -5/Cetus | Allies destroyed Cetus Guard 27449 | -5/Cetus | Allies destroyed Cetus Guard 27451 | -5/Cetus | Allies destroyed Cetus Guard 27470 | -5/Cetus | Lost 6 allies 27531 | -5/Cetus | Started Cetus Manufacturing Module 27556 | -5/Cetus | Manufactured an Enhanced Grunt 27561 | -5/Cetus | Escorted A7 to Cetus Mainframe 27581 | -5/Cetus | Manufactured an Enhanced Grunt 27584 | -5/Cetus | Discovered new exit (range 15) 27606 | -5/Cetus | Manufactured an Enhanced Grunt 27614 | -5/Cetus | Spotted Cetus Guard 27614 | -5/Cetus | Spotted Cetus Guard 27618 | -5/Cetus | Spotted Cetus Guard 27619 | -5/Cetus | Spotted Cetus Guard 27619 | -5/Cetus | Allies destroyed Cetus Guard 27623 | -5/Cetus | Allies destroyed Cetus Guard 27630 | -5/Cetus | Destroyed Cetus Guard 27631 | -5/Cetus | Manufactured an Enhanced Grunt 27634 | -5/Cetus | Destroyed Cetus Guard 27644 | -5/Cetus | Discovered new exit (range 15) 27652 | -5/Cetus | Met Revision 17 27656 | -5/Cetus | Manufactured an Enhanced Grunt 27783 | -5/Cetus | Entered Archives 27783 | -5/Archives | Accompanied by 15 allies (A7) 27788 | -5/Archives | Received a hacking code to weaken MAIN.C 28086 | -5/Archives | Build established: Scavenger-Executioner 28820 | -5/Archives | Discovered new exit (range 15) 28863 | -5/Archives | Entered Hub_04(d) 28863 | -5/Hub_04(d) | Accompanied by 11 allies 28975 | -5/Hub_04(d) | Identified exit to Factory 29062 | -5/Hub_04(d) | Network Hub disabled 29071 | -5/Hub_04(d) | Entered Factory 29071 | -4/Factory | Accompanied by 7 allies 29071 | -4/Factory | Evolved 2 slots: Weapon x2 29072 | -4/Factory | Loaded intel: 105 trap records 29169 | -4/Factory | Discovered new exit (range 9) 29397 | -4/Factory | Identified exit to Upper Caves 29590 | -4/Factory | Identified exit to Research 29682 | -4/Factory | Garrison activated, responded to threat 29734 | -4/Factory | Destroyed 9 combat bots 29741 | -4/Factory | Lost 4 allies 30126 | -4/Factory | Entered Upper Caves 30655 | -4/Upper Caves | Discovered new exit (range 14) 30872 | -4/Upper Caves | Entered another Upper Caves area 31135 | -4/Upper Caves | Discovered exit to Research (range 15) 31331 | -4/Upper Caves | Entered Research 31331 | -3/Research | Accompanied by 4 allies 31331 | -3/Research | Evolved 2 slots: Weapon x2 31332 | -3/Research | Loaded intel: 61 trap records 31457 | -3/Research | Repaired Centrium Heavy Treads? 31539 | -3/Research | Revision forces began assault on 0b10 31546 | -3/Research | Met up with Revision 17++ 31850 | -3/Research | Identified exit to Armory 31850 | -3/Research | Identified exit to Quarantine 31852 | -3/Research | Identified exit to Research 31905 | -3/Research | Watched by a mysterious "MATRIX" hacker 32039 | -3/Research | Research terminal network offline 32216 | -3/Research | Found Prototype Launcher 32216 | -3/Research | Identified Adv. Micro-nuke Launcher 32229 | -3/Research | Found Adv. Micro-nuke Launcher 32247 | -3/Research | Central database locked down 32655 | -3/Research | Found Prototype Processor 32655 | -3/Research | Identified Spectral Analyzer 32843 | -3/Research | Entered another Research area 32843 | -2/Research | Accompanied by 1 ally 32843 | -2/Research | Evolved 2 slots: Weapon x2 32856 | -2/Research | Identified exit to DSF 32860 | -2/Research | Entered DSF 32860 | -2/DSF | Accompanied by 1 ally 32890 | -2/DSF | Additional patrols routed to DSF 32925 | -2/DSF | Lost 4 parts (2u2w) 33005 | -2/DSF | Discovered new exit (range 14) 33086 | -2/DSF | Sterilization system engaged 33106 | -2/DSF | Ambient heat levels rising (+10) 33121 | -2/DSF | Ambient heat levels rising (+10) 33129 | -2/DSF | Entered Access 33129 | -1/Access | Evolved 2 slots: Weapon x2 33379 | -1/Access | Energy Cycler disabled 33834 | -1/Access | Fabricated Lgt. Assault Rifle (x3) 33852 | -1/Access | Fabricated Lgt. Assault Rifle (x3) 33876 | -1/Access | Fabricated Lgt. Assault Rifle (x3) 33948 | -1/Access | Destroyed 7 combat bots 34164 | -1/Access | Incoming investigation squad redirected 34184 | -1/Access | Lost 3 parts (1p2w) 34189 | -1/Access | Destroyed 9 combat bots 34379 | -1/Access | First assault squad dispatched 34403 | -1/Access | Incoming assault squad redirected 34717 | -1/Access | Garrison activated, responded to threat 34804 | -1/Access | Lost 3 parts (3w) 34905 | -1/Access | Incoming assault squad redirected 34907 | -1/Access | Incoming assault squad redirected 34944 | -1/Access | System corruption reached 10% 34992 | -1/Access | Destroyed 8 combat bots 34992 | -1/Access | Lost 5 parts (5w) 35089 | -1/Access | Discovered new exit (range 5) 35215 | -1/Access | Lost 5 parts (1u4w) 35260 | *** | Escaped! Last Messages --------------- 35187_ Slug penetrates G-73 Enforcer. 35187_ G-73 Enforcer suffers critical hit (Destroy). 35187_ Destroyed Unknown Reactor. 35187_ Critical hit (Burn: +37). 35190_ Slug penetrates G-73 Enforcer. 35190_ G-73 Enforcer destroyed. 35194_ Slug penetrates G-73 Enforcer. 35194_ G-73 Enforcer suffers critical hit (Destroy). 35194_ Destroyed Phase Gun. 35194_ G-73 Enforcer destroyed. 35198_ System corrupted: Matter fused (-10). 35204_ Ended siege mode. 35214_ <3|XPLF7KDJWZGCAYQT:2B72AX:VYW: I 35216_ Acquired 97 matter. 35218_ Acquired 160 matter. 35219_ Acquired 68 matter. 35226_ Acquired Phase Gun. 35234_ System corrupted: Substantial component data lost. 35253_ System corrupted: Matter fused (-9). Map ----- +----------------------------------------------------+ | ????# ??"" " """"" # # " #?? | | ????# """" """"" # % + #?? | | ????# """"" """"" #! !##+#"######### ! ! #?? | | ????# """"" " "" +=!=#=! " ??????###"######## | | ????# ! !! # # * """ #?????## ! | | ?????? ] ] =# #=|""" #??????# | | ????# # ### # #=# ! " #??????# | | ????# ## * #??????# | | ???# ## # #??????# | | ###### #??????#!=! | | % ### # #??????#!=! | | #####+### # # # # # # #??????#!= | | ??# # # ## # # ##########??????# | | ??# ## # # # ###???????????????# | | ??# ## # # ###?????????????????# " | | ??# ## #########???????????????????# """ | | ??# # ##??????????????????????????# """ | | ??# ## ##??????????????????????????# " | | ??#######?# #?????###???????????????????# | | ??????????# ####### ##########??????????# | | ??????????# %"""T""" "??????????# | | ??????????# %""" """ "????BB????# | | ??????????#% =! "????BB????######### | | ??????????#%= = "?????????????????? | | ??????????#u=!* "" "????????????????? | | ??????????# @" "???????????????? | | ??????????# "??????????????? | | ??????????# "????BB???????? ## | | ??????????# "????BB???????? ?? | | ??????????# "??????????????? ??? | | ??????????# ####### ##########??????????????????? | | ?####?????# #?????###???????????????????????????? | | ## =####### #???????????????????????????????????? | | "= ! # #???????????????????????????????????? | | ## # #???????????????????????????????????? | | ?# + #???????????????????????????????????? | | ?# " # #???????????????????????????????????? | | ?# """ # ????????????????????????????????? | | ?# """# ??????????????C?????????????? | | ?# " ########## #????????????????????????? | | ?# ] #????????????##????????????????????????? | | ?# #??????????????????????????????????????? | | ?##########??????????????????????????????????????? | | ?????????????????????????????????????????????????? | | ?????????????????????????????????????????????????? | | ?????????????????????????????????????????????????? | | ?????????????????????????????????????????????????? | | ?????????????????????????????????????????????????? | | ?????????????????????????????????????????????????? | | ?????????????????????????????????????????????????? | +----------------------------------------------------+ Best States ------------- Heat Dissipation 52 Coolant Potential 100 Energy Generation 25 Energy Capacity 350 Matter Stores 300 Matter Capacity 800 Sight Range 16 Terrain Scan Density 10 Jamming Range 16 Armor Coverage 600 Resistance: KI 20 Evasion (%) 40 Targeting Accuracy 6 Target Analysis 8 Core Analysis 6 Recoil Reduction 8 Offensive Hacking 10 Authchip Count 3 Item Schematics ----------------- Lgt. Assault Rifle | -10/Materials | Hacked Recoil Stabilizer | -8/Storage | Hacked Combat Drone Bay | -7/Data Miner | Free Lgt. Regenerative Plating | -7/Data Miner | Free Biomechanical Wings | -7/Data Miner | Free Exp. Targeting Computer | -7/Data Miner | Free Force Rifle | -7/Data Miner | Free Antigrav System | -7/Data Miner | Free Point Defense System | -7/Data Miner | Free Imp. Arc Projector | -7/Data Miner | Free Robot Schematics ------------------ G-50 Soldier | -7/Data Miner | Free Y-54 Guardian | -7/Data Miner | Free H-66 Slayer | -7/Data Miner | Free R-10 Processor | -7/Data Miner | Free Fabricated ------------ Lgt. Assault Rifle | x3 | -1/Access | Authchip Lgt. Assault Rifle | x3 | -1/Access | Authchip Lgt. Assault Rifle | x3 | -1/Access | Authchip Repaired ---------- Lgt. Treads | 14% | -10/Materials Imp. Assault Rifle | 44% | -8/Storage Imp. Assault Rifle | 47% | -8/Storage Imp. Assault Rifle | 62% | -7/Factory Coil Gun | 31% | -5/Factory Lgt. Assault Rifle | 41% | -5/Factory KE Penetrator | 66% | -5/Extension KE Penetrator | 56% | -5/Extension Reactive Plating | 60% | -5/Extension Centrium Heavy Treads | 62% | -3/Research Studied --------- Lgt. Assault Rifle | -9/Materials | Hacked Autogun | -9/Materials | Hacked Lgt. Treads | -9/Materials | Hacked Imp. Ion Engine | -9/Materials | Hacked Minigun | -8/Materials | Hacked Imp. Treads | -8/Materials | Hacked Missile Launcher | -8/Materials | Hacked Mni. Grenade Launcher | -8/Materials | Hacked Arm. Treads | -6/Factory | Hacked Imp. Medium Treads | -6/Factory | Hacked Flak Gun | -6/Factory | Hacked KE Penetrator | -3/Research | Hacked Railgun | -1/Access | Hacked Arm. Heavy Treads | -1/Access | Hacked Enh. Nova Cannon | -1/Access | Hacked Alien Tech Used ----------------- None Achievements -------------- None Challenges ------------ None Game ------ Seed FlakVisualArchive Manual? 0 Play Time 02:56:45 Cumulative 2330.5 hours Start 2026.09.12 @ 10:03:11 End 2026.09.12 @ 12:59:33 Sessions 1 Manual Loads 0 Difficulty Rogue Special Mode None Game No. 1447 Rogue 1443 Adventurer 4 Explorer 0 Win Type 0 Total 340 Types 255/15/27/11/4/1/6/10/7/4 Lore% 99 Gallery% 96 Achievement% 95 Wizard Run 0 Options --------- Layout 2 ASCII 0 Keyboard 1 Movement Vi Keybinds 0 Fullscreen 0 Font 24/Terminus Map View 59x48 Zoom Use 0% Tactical HUD 1 Map Filters NONE Filters NONE Steam 1 RUN: 1a084ed8-954d-41c1-8fc0-5cf9f7d81bc3